[Event "Titled Tuesday Blitz February 07 Early 2023"]
[White "Jenkins, Drake"]
[Black "Ramirez Allo, Eduardo"]
[WhiteFideId "2022397"]
[BlackFideId "2224178"]
[WhiteElo "2130"]
[BlackElo "2274"]
[Result "0-1"]
[Round "06"]
[TimeControl "180+2"]
[Date "2023.02.07"]
[WhiteClock "0:00:01"]
[BlackClock "0:00:08"]

1. Nf3 {[%clk 0:03:00]}  Nf6 {[%clk 0:02:59]} 2. c4 {[%clk 0:03:01]}  g6 {[%clk 0:03:00]} 3. Nc3 {[%clk 0:03:01]}  Bg7 {[%clk 0:03:00]} 4. g3 {[%clk 0:03:02]}  O-O {[%clk 0:03:00]} 5. Bg2 {[%clk 0:03:02]}  c5 {[%clk 0:03:01]} 6. d4 {[%clk 0:03:02]}  d6 {[%clk 0:03:00]} 7. O-O {[%clk 0:03:00]}  Nbd7 {[%clk 0:03:01]} 8. b3 {[%clk 0:02:56]}  Rb8 {[%clk 0:03:00]} 9. Bb2 {[%clk 0:02:55]}  b6 {[%clk 0:03:01]} 10. Re1 {[%clk 0:02:51]}  Bb7 {[%clk 0:03:00]} 11. d5 {[%clk 0:02:51]}  a6 {[%clk 0:02:57]} 12. e4 {[%clk 0:02:49]}  b5 {[%clk 0:02:58]} 13. cxb5 {[%clk 0:02:29]}  axb5 {[%clk 0:02:59]} 14. Nxb5 {[%clk 0:02:29]}  Ba6 {[%clk 0:02:59]} 15. Nc3 {[%clk 0:02:13]}  Ng4 {[%clk 0:02:55]} 16. Bf1 {[%clk 0:02:00]}  Qb6 {[%clk 0:02:48]} 17. Bxa6 {[%clk 0:01:55]}  Qxa6 {[%clk 0:02:49]} 18. Qe2 {[%clk 0:01:54]}  Ra8 {[%clk 0:02:44]} 19. a4 {[%clk 0:01:40]}  Rfb8 {[%clk 0:02:43]} 20. Nb5 {[%clk 0:01:35]}  Nge5 {[%clk 0:02:23]} 21. Nxe5 {[%clk 0:01:32]}  Nxe5 {[%clk 0:02:24]} 22. Kg2 {[%clk 0:01:29]}  Qb7 {[%clk 0:02:10]} 23. f4 {[%clk 0:01:25]}  Nd7 {[%clk 0:02:09]} 24. Bxg7 {[%clk 0:01:24]}  Kxg7 {[%clk 0:02:10]} 25. h4 {[%clk 0:01:19]}  Nf6 {[%clk 0:01:59]} 26. Rad1 {[%clk 0:01:10]}  Ne8 {[%clk 0:01:55]} 27. h5 {[%clk 0:01:04]}  Nc7 {[%clk 0:01:54]} 28. Nxc7 {[%clk 0:00:52]}  Qxc7 {[%clk 0:01:55]} 29. Rd3 {[%clk 0:00:47]}  Rb4 {[%clk 0:01:54]} 30. Qb2+ {[%clk 0:00:33]}  f6 {[%clk 0:01:49]} 31. e5 {[%clk 0:00:27]}  Rab8 {[%clk 0:01:37]} 32. exf6+ {[%clk 0:00:26]}  exf6 {[%clk 0:01:38]} 33. Rde3 {[%clk 0:00:23]}  R4b7 {[%clk 0:01:10]} 34. Qe2 {[%clk 0:00:17]}  Kf7 {[%clk 0:00:54]} 35. hxg6+ {[%clk 0:00:15]}  hxg6 {[%clk 0:00:53]} 36. Rh1 {[%clk 0:00:11]}  Kg7 {[%clk 0:00:44]} 37. f5 {[%clk 0:00:10]}  Qf7 {[%clk 0:00:39]} 38. fxg6 {[%clk 0:00:09]}  Qxd5+ {[%clk 0:00:38]} 39. Qf3 {[%clk 0:00:06]}  Qxf3+ {[%clk 0:00:33]} 40. Kxf3 {[%clk 0:00:07]}  Rxb3 {[%clk 0:00:34]} 41. Ra1 {[%clk 0:00:03]}  Kxg6 {[%clk 0:00:28]} 42. a5 {[%clk 0:00:03]}  R3b5 {[%clk 0:00:13]} 43. a6 {[%clk 0:00:02]}  Ra8 {[%clk 0:00:13]} 44. a7 {[%clk 0:00:01]}  Rb7 {[%clk 0:00:13]} 45. Rd3 {[%clk 0:00:01]}  Raxa7 {[%clk 0:00:11]} 46. Rxa7 {[%clk 0:00:02]}  Rxa7 {[%clk 0:00:11]} 47. Rxd6 {[%clk 0:00:02]}  Ra3+ {[%clk 0:00:11]} 48. Kf4 {[%clk 0:00:01]}  Ra4+ {[%clk 0:00:09]} 49. Kf3 {[%clk 0:00:02]}  Rc4 {[%clk 0:00:10]} 50. Rc6 {[%clk 0:00:02]}  Kf5 {[%clk 0:00:10]} 51. g4+ {[%clk 0:00:02]}  Kg5 {[%clk 0:00:06]} 52. Rc8 {[%clk 0:00:02]}  Rc3+ {[%clk 0:00:06]} 53. Kf2 {[%clk 0:00:01]}  Kxg4 {[%clk 0:00:07]} 54. Rf8 {[%clk 0:00:01]}  f5 {[%clk 0:00:07]} 55. Rg8+ {[%clk 0:00:01]}  Kf4 {[%clk 0:00:08]} 0-1


[Site "https://www.chess.com"]

[Event "Titled Tuesday Blitz February 07 Early 2023"]
[White "Mamedov, Edgar"]
[Black "Marchesich, Giovanni"]
[WhiteFideId "13739980"]
[BlackFideId "2824790"]
[WhiteElo "2193"]
[BlackElo "2217"]
[Result "1-0"]
[Round "06"]
[TimeControl "180+2"]
[Date "2023.02.07"]
[WhiteClock "0:00:17"]
[BlackClock "0:00:02"]

1. d4 {[%clk 0:03:00]}  Nf6 {[%clk 0:02:57]} 2. Bg5 {[%clk 0:03:00]}  c5 {[%clk 0:02:54]} 3. Bxf6 {[%clk 0:02:59]}  gxf6 {[%clk 0:02:53]} 4. d5 {[%clk 0:02:59]}  Bg7 {[%clk 0:02:51]} 5. c4 {[%clk 0:02:58]}  f5 {[%clk 0:02:51]} 6. Nc3 {[%clk 0:02:58]}  O-O {[%clk 0:02:50]} 7. Qc2 {[%clk 0:02:55]}  d6 {[%clk 0:02:49]} 8. e3 {[%clk 0:02:55]}  Na6 {[%clk 0:02:47]} 9. a3 {[%clk 0:02:53]}  Nc7 {[%clk 0:02:43]} 10. Nh3 {[%clk 0:02:53]}  e5 {[%clk 0:02:39]} 11. Bd3 {[%clk 0:02:45]}  e4 {[%clk 0:02:38]} 12. Be2 {[%clk 0:02:45]}  a6 {[%clk 0:02:35]} 13. Nf4 {[%clk 0:02:44]}  Rb8 {[%clk 0:02:33]} 14. O-O {[%clk 0:02:42]}  b5 {[%clk 0:02:33]} 15. cxb5 {[%clk 0:02:39]}  axb5 {[%clk 0:02:34]} 16. b4 {[%clk 0:02:23]}  c4 {[%clk 0:02:33]} 17. Rab1 {[%clk 0:02:21]}  Qf6 {[%clk 0:02:05]} 18. Rfc1 {[%clk 0:02:20]}  Bb7 {[%clk 0:02:00]} 19. a4 {[%clk 0:02:06]}  Qxc3 {[%clk 0:01:52]} 20. Qxc3 {[%clk 0:02:06]}  Bxc3 {[%clk 0:01:52]} 21. Rxc3 {[%clk 0:02:06]}  Nxd5 {[%clk 0:01:53]} 22. Nxd5 {[%clk 0:02:05]}  Bxd5 {[%clk 0:01:54]} 23. axb5 {[%clk 0:02:00]}  Rfc8 {[%clk 0:01:46]} 24. Rd1 {[%clk 0:01:52]}  Rxb5 {[%clk 0:01:43]} 25. Rd4 {[%clk 0:01:39]}  Rc6 {[%clk 0:01:35]} 26. g4 {[%clk 0:01:14]}  fxg4 {[%clk 0:01:03]} 27. Bxg4 {[%clk 0:01:14]}  Be6 {[%clk 0:00:34]} 28. Bxe6 {[%clk 0:01:11]}  fxe6 {[%clk 0:00:35]} 29. Rcxc4 {[%clk 0:01:05]}  Rxc4 {[%clk 0:00:30]} 30. Rxc4 {[%clk 0:01:05]}  d5 {[%clk 0:00:30]} 31. Rd4 {[%clk 0:01:04]}  Kf7 {[%clk 0:00:27]} 32. Kg2 {[%clk 0:00:57]}  Ke7 {[%clk 0:00:26]} 33. f3 {[%clk 0:00:54]}  exf3+ {[%clk 0:00:17]} 34. Kxf3 {[%clk 0:00:54]}  Kd6 {[%clk 0:00:17]} 35. Rh4 {[%clk 0:00:51]}  Rb7 {[%clk 0:00:10]} 36. Ke2 {[%clk 0:00:47]}  Kc6 {[%clk 0:00:09]} 37. Kd3 {[%clk 0:00:45]}  Kb5 {[%clk 0:00:09]} 38. e4 {[%clk 0:00:18]}  Kxb4 {[%clk 0:00:02]} 39. exd5+ {[%clk 0:00:18]}  Kc5 {[%clk 0:00:01]} 40. dxe6 {[%clk 0:00:18]}  Kd6 {[%clk 0:00:02]} 41. Rh6 {[%clk 0:00:17]} 1-0


[Site "https://www.chess.com"]

[Event "Titled Tuesday Blitz February 07 Early 2023"]
[White "Marn, Jan"]
[Black "Senft, Sean"]
[WhiteFideId "14619245"]
[BlackFideId "2044960"]
[WhiteElo "2345"]
[BlackElo "2089"]
[Result "1-0"]
[Round "06"]
[TimeControl "180+2"]
[Date "2023.02.07"]
[WhiteClock "0:00:14"]
[BlackClock "0:00:15"]

1. d4 {[%clk 0:03:00]}  d5 {[%clk 0:02:59]} 2. Nf3 {[%clk 0:03:01]}  c6 {[%clk 0:02:59]} 3. Bf4 {[%clk 0:02:59]}  Nf6 {[%clk 0:02:59]} 4. e3 {[%clk 0:02:58]}  Bg4 {[%clk 0:02:59]} 5. Nbd2 {[%clk 0:02:54]}  e6 {[%clk 0:02:58]} 6. c4 {[%clk 0:02:52]}  Nbd7 {[%clk 0:02:58]} 7. Qb3 {[%clk 0:02:53]}  Qc8 {[%clk 0:02:55]} 8. Ne5 {[%clk 0:02:46]}  Nxe5 {[%clk 0:02:54]} 9. Bxe5 {[%clk 0:02:46]}  Be7 {[%clk 0:02:48]} 10. Rc1 {[%clk 0:02:35]}  O-O {[%clk 0:02:48]} 11. f3 {[%clk 0:02:35]}  Bh5 {[%clk 0:02:46]} 12. g4 {[%clk 0:02:35]}  Bg6 {[%clk 0:02:47]} 13. h4 {[%clk 0:02:36]}  h5 {[%clk 0:02:46]} 14. Bxf6 {[%clk 0:02:23]}  Bxf6 {[%clk 0:02:45]} 15. g5 {[%clk 0:02:22]}  Be7 {[%clk 0:02:45]} 16. f4 {[%clk 0:02:22]}  f6 {[%clk 0:02:42]} 17. Bd3 {[%clk 0:02:21]}  Bxd3 {[%clk 0:02:41]} 18. Qxd3 {[%clk 0:02:21]}  e5 {[%clk 0:02:28]} 19. dxe5 {[%clk 0:02:14]}  fxe5 {[%clk 0:02:27]} 20. cxd5 {[%clk 0:01:38]}  exf4 {[%clk 0:02:22]} 21. d6 {[%clk 0:01:38]}  fxe3 {[%clk 0:02:08]} 22. dxe7 {[%clk 0:01:35]}  exd2+ {[%clk 0:02:06]} 23. Kxd2 {[%clk 0:01:35]}  Rf2+ {[%clk 0:02:02]} 24. Kc3 {[%clk 0:01:34]}  Qg4 {[%clk 0:01:54]} 25. Rce1 {[%clk 0:01:31]}  Re8 {[%clk 0:01:53]} 26. Re3 {[%clk 0:01:17]}  a5 {[%clk 0:01:48]} 27. a3 {[%clk 0:01:12]}  Qg2 {[%clk 0:01:33]} 28. Qg6 {[%clk 0:00:38]}  Rf7 {[%clk 0:01:23]} 29. Rhe1 {[%clk 0:00:31]}  Qd5 {[%clk 0:01:19]} 30. Qxh5 {[%clk 0:00:21]}  Qc5+ {[%clk 0:01:06]} 31. Kb3 {[%clk 0:00:21]}  Qd5+ {[%clk 0:00:50]} 32. Kc2 {[%clk 0:00:21]}  Rf2+ {[%clk 0:00:45]} 33. R1e2 {[%clk 0:00:17]}  Qc4+ {[%clk 0:00:45]} 34. Kb1 {[%clk 0:00:17]}  Rf7 {[%clk 0:00:21]} 35. g6 {[%clk 0:00:16]}  Rf1+ {[%clk 0:00:20]} 36. Re1 {[%clk 0:00:13]}  Rxe1+ {[%clk 0:00:20]} 37. Rxe1 {[%clk 0:00:14]}  Qd3+ {[%clk 0:00:18]} 38. Ka1 {[%clk 0:00:14]}  Rxe7 {[%clk 0:00:15]} 39. Qh7+ {[%clk 0:00:14]}  Kf8 {[%clk 0:00:15]} 40. Qh8# {[%clk 0:00:14]} 1-0


[Site "https://www.chess.com"]

[Event "Titled Tuesday Blitz February 07 Early 2023"]
[White "Theytookourjobs"]
[Black "Hajiyev, Kanan"]
[BlackFideId "13404148"]
[WhiteElo "2291"]
[BlackElo "2197"]
[Result "0-1"]
[Round "06"]
[TimeControl "180+2"]
[Date "2023.02.07"]
[WhiteClock "0:00:01"]
[BlackClock "0:00:12"]

1. d4 {[%clk 0:02:55]}  d5 {[%clk 0:02:58]} 2. Bf4 {[%clk 0:02:56]}  c5 {[%clk 0:02:57]} 3. e3 {[%clk 0:02:56]}  cxd4 {[%clk 0:02:58]} 4. exd4 {[%clk 0:02:56]}  Nc6 {[%clk 0:02:59]} 5. Nc3 {[%clk 0:02:56]}  Bf5 {[%clk 0:02:55]} 6. Nf3 {[%clk 0:02:47]}  e6 {[%clk 0:02:53]} 7. Bd3 {[%clk 0:02:38]}  Bxd3 {[%clk 0:02:50]} 8. Qxd3 {[%clk 0:02:39]}  Nf6 {[%clk 0:02:47]} 9. Ne5 {[%clk 0:02:27]}  Bd6 {[%clk 0:02:42]} 10. Qb5 {[%clk 0:01:51]}  Qc7 {[%clk 0:02:36]} 11. Qa4 {[%clk 0:01:51]}  O-O {[%clk 0:02:31]} 12. Nb5 {[%clk 0:01:50]}  Bb4+ {[%clk 0:01:22]} 13. c3 {[%clk 0:01:46]}  Qa5 {[%clk 0:01:20]} 14. Qxa5 {[%clk 0:01:16]}  Bxa5 {[%clk 0:01:20]} 15. O-O {[%clk 0:00:37]}  a6 {[%clk 0:01:10]} 16. Na3 {[%clk 0:00:36]}  Nh5 {[%clk 0:01:02]} 17. Nxc6 {[%clk 0:00:29]}  bxc6 {[%clk 0:01:03]} 18. Bd6 {[%clk 0:00:24]}  Rfd8 {[%clk 0:01:03]} 19. Bc5 {[%clk 0:00:24]}  Rab8 {[%clk 0:01:04]} 20. b4 {[%clk 0:00:23]}  Bc7 {[%clk 0:01:04]} 21. Nc2 {[%clk 0:00:24]}  Nf4 {[%clk 0:01:04]} 22. Rfe1 {[%clk 0:00:16]}  a5 {[%clk 0:01:02]} 23. a3 {[%clk 0:00:16]}  Rb7 {[%clk 0:01:02]} 24. Re3 {[%clk 0:00:13]}  Ra8 {[%clk 0:01:01]} 25. g3 {[%clk 0:00:12]}  Nh3+ {[%clk 0:00:59]} 26. Kg2 {[%clk 0:00:12]}  Ng5 {[%clk 0:01:00]} 27. Rae1 {[%clk 0:00:11]}  axb4 {[%clk 0:00:54]} 28. axb4 {[%clk 0:00:10]}  Ra2 {[%clk 0:00:53]} 29. R1e2 {[%clk 0:00:10]}  Ne4 {[%clk 0:00:53]} 30. Ne1 {[%clk 0:00:09]}  Rxe2 {[%clk 0:00:52]} 31. Rxe2 {[%clk 0:00:10]}  Nxc3 {[%clk 0:00:52]} 32. Rc2 {[%clk 0:00:09]}  Ne4 {[%clk 0:00:48]} 33. Nd3 {[%clk 0:00:08]}  h5 {[%clk 0:00:23]} 34. Ra2 {[%clk 0:00:08]}  Nxc5 {[%clk 0:00:15]} 35. bxc5 {[%clk 0:00:05]}  f6 {[%clk 0:00:14]} 36. Ra6 {[%clk 0:00:04]}  e5 {[%clk 0:00:13]} 37. Rxc6 {[%clk 0:00:04]}  exd4 {[%clk 0:00:11]} 38. Nf4 {[%clk 0:00:04]}  Bxf4 {[%clk 0:00:11]} 39. gxf4 {[%clk 0:00:04]}  Kf7 {[%clk 0:00:09]} 40. Rd6 {[%clk 0:00:05]}  Rc7 {[%clk 0:00:05]} 41. Rxd5 {[%clk 0:00:05]}  Ke6 {[%clk 0:00:06]} 42. Rxd4 {[%clk 0:00:05]}  Rxc5 {[%clk 0:00:06]} 43. Rd3 {[%clk 0:00:05]}  Kf5 {[%clk 0:00:07]} 44. Kf3 {[%clk 0:00:05]}  g6 {[%clk 0:00:07]} 45. h4 {[%clk 0:00:05]}  Rb5 {[%clk 0:00:07]} 46. Rc3 {[%clk 0:00:04]}  Rb4 {[%clk 0:00:07]} 47. Rc5+ {[%clk 0:00:04]}  Ke6 {[%clk 0:00:07]} 48. Rc6+ {[%clk 0:00:04]}  Ke7 {[%clk 0:00:07]} 49. Rc5 {[%clk 0:00:03]}  Kd6 {[%clk 0:00:07]} 50. Ra5 {[%clk 0:00:03]}  Rb3+ {[%clk 0:00:07]} 51. Ke4 {[%clk 0:00:02]}  Rh3 {[%clk 0:00:08]} 52. Ra6+ {[%clk 0:00:02]}  Ke7 {[%clk 0:00:08]} 53. Ra7+ {[%clk 0:00:02]}  Ke6 {[%clk 0:00:09]} 54. Ra6+ {[%clk 0:00:02]}  Kf7 {[%clk 0:00:10]} 55. Ra7+ {[%clk 0:00:03]}  Kf8 {[%clk 0:00:11]} 56. Ra8+ {[%clk 0:00:03]}  Kg7 {[%clk 0:00:11]} 57. Ra7+ {[%clk 0:00:04]}  Kh6 {[%clk 0:00:12]} 58. Kd5 {[%clk 0:00:03]}  Rxh4 {[%clk 0:00:12]} 59. Ra4 {[%clk 0:00:03]}  g5 {[%clk 0:00:11]} 60. fxg5+ {[%clk 0:00:04]}  Kxg5 {[%clk 0:00:11]} 61. Ra3 {[%clk 0:00:03]}  Rf4 {[%clk 0:00:11]} 62. Rg3+ {[%clk 0:00:03]}  Kf5 {[%clk 0:00:12]} 63. Rh3 {[%clk 0:00:02]}  h4 {[%clk 0:00:12]} 64. Kc5 {[%clk 0:00:01]}  Kg4 {[%clk 0:00:13]} 65. Re3 {[%clk 0:00:01]}  h3 {[%clk 0:00:12]} 0-1


[Site "https://www.chess.com"]

[Event "Titled Tuesday Blitz February 07 Early 2023"]
[White "Bobomurodova, Maftuna"]
[Black "Baches Garcia, Guillermo"]
[WhiteFideId "14207400"]
[BlackFideId "2209764"]
[WhiteElo "1946"]
[BlackElo "2327"]
[Result "0-1"]
[Round "06"]
[TimeControl "180+2"]
[Date "2023.02.07"]
[WhiteClock "0:00:01"]
[BlackClock "0:00:11"]

1. e4 {[%clk 0:02:59]}  c5 {[%clk 0:03:00]} 2. Nf3 {[%clk 0:02:54]}  d6 {[%clk 0:03:00]} 3. d4 {[%clk 0:02:53]}  cxd4 {[%clk 0:03:01]} 4. Nxd4 {[%clk 0:02:52]}  Nf6 {[%clk 0:03:02]} 5. Nc3 {[%clk 0:02:52]}  a6 {[%clk 0:03:02]} 6. Bg5 {[%clk 0:02:52]}  Nbd7 {[%clk 0:03:01]} 7. f4 {[%clk 0:02:46]}  h6 {[%clk 0:02:55]} 8. Bh4 {[%clk 0:02:41]}  g6 {[%clk 0:02:55]} 9. Bf2 {[%clk 0:02:33]}  e5 {[%clk 0:02:39]} 10. fxe5 {[%clk 0:02:25]}  dxe5 {[%clk 0:02:39]} 11. Nb3 {[%clk 0:02:21]}  Bb4 {[%clk 0:02:32]} 12. Bd3 {[%clk 0:02:20]}  O-O {[%clk 0:02:25]} 13. O-O {[%clk 0:02:19]}  b5 {[%clk 0:02:22]} 14. Be3 {[%clk 0:02:17]}  Kg7 {[%clk 0:02:15]} 15. Qf3 {[%clk 0:02:09]}  Bb7 {[%clk 0:02:08]} 16. Ne2 {[%clk 0:02:04]}  Be7 {[%clk 0:01:46]} 17. Ng3 {[%clk 0:01:57]}  Qc7 {[%clk 0:01:43]} 18. h4 {[%clk 0:01:50]}  h5 {[%clk 0:01:33]} 19. Bg5 {[%clk 0:01:47]}  Rae8 {[%clk 0:01:24]} 20. Qe2 {[%clk 0:01:28]}  Ng4 {[%clk 0:01:18]} 21. Rf3 {[%clk 0:01:18]}  Nc5 {[%clk 0:01:13]} 22. Raf1 {[%clk 0:01:11]}  Bxg5 {[%clk 0:01:08]} 23. hxg5 {[%clk 0:01:09]}  Ne6 {[%clk 0:01:07]} 24. Qd2 {[%clk 0:00:47]}  Qe7 {[%clk 0:01:00]} 25. Rf5 {[%clk 0:00:42]}  Bc8 {[%clk 0:00:51]} 26. Be2 {[%clk 0:00:34]}  Qa7+ {[%clk 0:00:45]} 27. Kh1 {[%clk 0:00:28]}  Ne3 {[%clk 0:00:45]} 28. R5f3 {[%clk 0:00:19]}  Nxf1 {[%clk 0:00:43]} 29. Rxf1 {[%clk 0:00:19]}  Rd8 {[%clk 0:00:40]} 30. Bd3 {[%clk 0:00:19]}  Nf4 {[%clk 0:00:37]} 31. Qc3 {[%clk 0:00:18]}  Nxd3 {[%clk 0:00:31]} 32. cxd3 {[%clk 0:00:17]}  Qe7 {[%clk 0:00:31]} 33. Qd2 {[%clk 0:00:15]}  Be6 {[%clk 0:00:26]} 34. Rf6 {[%clk 0:00:15]}  Bxb3 {[%clk 0:00:24]} 35. axb3 {[%clk 0:00:15]}  Rd6 {[%clk 0:00:24]} 36. Rf1 {[%clk 0:00:13]}  Rfd8 {[%clk 0:00:24]} 37. Rf3 {[%clk 0:00:10]}  Qd7 {[%clk 0:00:22]} 38. Qf2 {[%clk 0:00:09]}  Rxd3 {[%clk 0:00:20]} 39. Rxd3 {[%clk 0:00:09]}  Qxd3 {[%clk 0:00:19]} 40. Qf6+ {[%clk 0:00:09]}  Kg8 {[%clk 0:00:19]} 41. Qxe5 {[%clk 0:00:09]}  Qd1+ {[%clk 0:00:13]} 42. Kh2 {[%clk 0:00:08]}  Qd6 {[%clk 0:00:14]} 43. Qc3 {[%clk 0:00:04]}  h4 {[%clk 0:00:12]} 44. e5 {[%clk 0:00:04]}  hxg3+ {[%clk 0:00:12]} 45. Qxg3 {[%clk 0:00:04]}  Qd3 {[%clk 0:00:12]} 46. Qf4 {[%clk 0:00:03]}  Qf5 {[%clk 0:00:12]} 47. Qh4 {[%clk 0:00:01]}  Kg7 {[%clk 0:00:11]} 0-1


[Site "https://www.chess.com"]

[Event "Titled Tuesday Blitz February 07 Early 2023"]
[White "Lesbekova, Assel"]
[Black "Degenbaev, Aziz"]
[WhiteFideId "13713248"]
[BlackFideId "13802640"]
[WhiteElo "1772"]
[BlackElo "2203"]
[Result "0-1"]
[Round "06"]
[TimeControl "180+2"]
[Date "2023.02.07"]
[WhiteClock "0:00:04"]
[BlackClock "0:00:15"]

1. e4 {[%clk 0:03:00]}  c5 {[%clk 0:02:33]} 2. Nc3 {[%clk 0:02:58]}  Nc6 {[%clk 0:02:31]} 3. Nge2 {[%clk 0:02:57]}  d6 {[%clk 0:02:31]} 4. d4 {[%clk 0:02:53]}  cxd4 {[%clk 0:02:31]} 5. Nxd4 {[%clk 0:02:54]}  Nf6 {[%clk 0:02:32]} 6. f3 {[%clk 0:02:53]}  e5 {[%clk 0:02:30]} 7. Nb3 {[%clk 0:02:45]}  Be6 {[%clk 0:02:29]} 8. Nd5 {[%clk 0:02:43]}  a6 {[%clk 0:02:21]} 9. Be3 {[%clk 0:02:41]}  Bxd5 {[%clk 0:02:15]} 10. exd5 {[%clk 0:02:42]}  Nb8 {[%clk 0:02:15]} 11. a4 {[%clk 0:02:38]}  Be7 {[%clk 0:02:15]} 12. a5 {[%clk 0:02:38]}  Nbd7 {[%clk 0:02:14]} 13. c4 {[%clk 0:02:35]}  O-O {[%clk 0:02:15]} 14. Bd3 {[%clk 0:02:33]}  Ne8 {[%clk 0:02:06]} 15. O-O {[%clk 0:02:30]}  f5 {[%clk 0:02:06]} 16. Be2 {[%clk 0:02:20]}  Rc8 {[%clk 0:01:54]} 17. Qd2 {[%clk 0:02:13]}  Nc5 {[%clk 0:01:37]} 18. Nxc5 {[%clk 0:02:06]}  dxc5 {[%clk 0:01:38]} 19. Rfc1 {[%clk 0:01:41]}  Nd6 {[%clk 0:01:37]} 20. b3 {[%clk 0:01:29]}  Bf6 {[%clk 0:01:34]} 21. Ra2 {[%clk 0:01:24]}  f4 {[%clk 0:01:13]} 22. Bf2 {[%clk 0:01:21]}  e4 {[%clk 0:01:14]} 23. fxe4 {[%clk 0:01:14]}  Nxe4 {[%clk 0:01:13]} 24. Qd3 {[%clk 0:01:14]}  Nxf2 {[%clk 0:01:10]} 25. Kxf2 {[%clk 0:01:13]}  Bd4+ {[%clk 0:01:11]} 26. Ke1 {[%clk 0:01:06]}  Be3 {[%clk 0:01:06]} 27. Rb1 {[%clk 0:00:56]}  Qh4+ {[%clk 0:01:06]} 28. Kd1 {[%clk 0:00:55]}  Qxh2 {[%clk 0:01:06]} 29. Bf3 {[%clk 0:00:53]}  Rce8 {[%clk 0:00:53]} 30. Re2 {[%clk 0:00:36]}  Bd4 {[%clk 0:00:46]} 31. Kc2 {[%clk 0:00:28]}  Re3 {[%clk 0:00:33]} 32. Rxe3 {[%clk 0:00:24]}  fxe3 {[%clk 0:00:34]} 33. Qe4 {[%clk 0:00:13]}  Qg3 {[%clk 0:00:21]} 34. Rf1 {[%clk 0:00:09]}  h6 {[%clk 0:00:20]} 35. Qe6+ {[%clk 0:00:09]}  Kh8 {[%clk 0:00:19]} 36. Kd3 {[%clk 0:00:07]}  Qf4 {[%clk 0:00:18]} 37. Ke2 {[%clk 0:00:06]}  Qc7 {[%clk 0:00:15]} 38. d6 {[%clk 0:00:05]}  Qxa5 {[%clk 0:00:15]} 39. d7 {[%clk 0:00:04]}  Qd2# {[%clk 0:00:15]} 0-1


[Site "https://www.chess.com"]

[Event "Titled Tuesday Blitz February 07 Early 2023"]
[White "Zaksaite, Salomeja"]
[Black "De Vreugt, Dennis"]
[WhiteFideId "12801496"]
[BlackFideId "1003909"]
[WhiteElo "2283"]
[BlackElo "2392"]
[Result "0-1"]
[Round "06"]
[TimeControl "180+2"]
[Date "2023.02.07"]
[WhiteClock "0:00:02"]
[BlackClock "0:01:23"]

1. e4 {[%clk 0:03:00]}  e5 {[%clk 0:02:59]} 2. Nf3 {[%clk 0:03:00]}  Nc6 {[%clk 0:02:59]} 3. Bc4 {[%clk 0:03:00]}  Nf6 {[%clk 0:02:58]} 4. d3 {[%clk 0:02:59]}  Bc5 {[%clk 0:02:57]} 5. O-O {[%clk 0:02:57]}  d6 {[%clk 0:02:56]} 6. h3 {[%clk 0:02:56]}  h6 {[%clk 0:02:55]} 7. c3 {[%clk 0:02:52]}  a6 {[%clk 0:02:56]} 8. a4 {[%clk 0:02:48]}  Ba7 {[%clk 0:02:52]} 9. Na3 {[%clk 0:02:48]}  Ne7 {[%clk 0:02:48]} 10. Nc2 {[%clk 0:02:46]}  Ng6 {[%clk 0:02:45]} 11. Ne3 {[%clk 0:02:45]}  O-O {[%clk 0:02:41]} 12. Nf5 {[%clk 0:02:41]}  d5 {[%clk 0:02:41]} 13. Bb3 {[%clk 0:02:23]}  dxe4 {[%clk 0:02:41]} 14. dxe4 {[%clk 0:02:21]}  Qxd1 {[%clk 0:02:36]} 15. Bxd1 {[%clk 0:01:19]}  Nxe4 {[%clk 0:02:36]} 16. g4 {[%clk 0:01:12]}  Be6 {[%clk 0:02:29]} 17. Bc2 {[%clk 0:01:12]}  Nd6 {[%clk 0:02:15]} 18. Re1 {[%clk 0:01:09]}  Rfe8 {[%clk 0:01:47]} 19. Be3 {[%clk 0:00:52]}  Bxe3 {[%clk 0:01:40]} 20. Rxe3 {[%clk 0:00:47]}  Nc4 {[%clk 0:01:37]} 21. Re2 {[%clk 0:00:42]}  Nf4 {[%clk 0:01:34]} 22. Re4 {[%clk 0:00:28]}  Bd5 {[%clk 0:01:30]} 23. Rxf4 {[%clk 0:00:03]}  exf4 {[%clk 0:01:30]} 24. N3d4 {[%clk 0:00:02]}  c5 {[%clk 0:01:23]} 0-1


[Site "https://www.chess.com"]

[Event "Titled Tuesday Blitz February 07 Early 2023"]
[White "Dilmukhametov, Artur"]
[Black "Ilinca Ilinca, Felix Antonio"]
[WhiteFideId "24179922"]
[BlackFideId "54764998"]
[WhiteElo "2276"]
[BlackElo "2266"]
[Result "0-1"]
[Round "06"]
[TimeControl "180+2"]
[Date "2023.02.07"]
[WhiteClock "0:00:03"]
[BlackClock "0:00:19"]

1. e4 {[%clk 0:03:00]}  c5 {[%clk 0:02:58]} 2. Nf3 {[%clk 0:02:59]}  e6 {[%clk 0:02:59]} 3. Nc3 {[%clk 0:03:00]}  Nc6 {[%clk 0:02:57]} 4. d4 {[%clk 0:03:01]}  cxd4 {[%clk 0:02:56]} 5. Nxd4 {[%clk 0:03:02]}  Nf6 {[%clk 0:02:56]} 6. Nxc6 {[%clk 0:02:46]}  bxc6 {[%clk 0:02:55]} 7. e5 {[%clk 0:02:40]}  Nd5 {[%clk 0:02:53]} 8. Ne4 {[%clk 0:02:41]}  Qc7 {[%clk 0:02:54]} 9. f4 {[%clk 0:02:41]}  Qb6 {[%clk 0:02:54]} 10. Qf3 {[%clk 0:02:24]}  Ba6 {[%clk 0:02:22]} 11. a3 {[%clk 0:02:10]}  Bxf1 {[%clk 0:01:55]} 12. Kxf1 {[%clk 0:02:03]}  f5 {[%clk 0:01:46]} 13. exf6 {[%clk 0:01:46]}  Qb5+ {[%clk 0:01:44]} 14. Qe2 {[%clk 0:01:37]}  Qxe2+ {[%clk 0:01:37]} 15. Kxe2 {[%clk 0:01:38]}  Nxf6 {[%clk 0:01:34]} 16. Kf3 {[%clk 0:01:24]}  Nxe4 {[%clk 0:01:28]} 17. Kxe4 {[%clk 0:01:23]}  Be7 {[%clk 0:01:18]} 18. Be3 {[%clk 0:01:15]}  a5 {[%clk 0:01:00]} 19. Bd4 {[%clk 0:01:15]}  Kf7 {[%clk 0:00:54]} 20. a4 {[%clk 0:01:11]}  c5 {[%clk 0:00:48]} 21. Bc3 {[%clk 0:01:10]}  d5+ {[%clk 0:00:44]} 22. Kf3 {[%clk 0:01:10]}  Rhb8 {[%clk 0:00:39]} 23. Be5 {[%clk 0:01:08]}  Rb4 {[%clk 0:00:34]} 24. b3 {[%clk 0:00:50]}  Bf6 {[%clk 0:00:24]} 25. Rae1 {[%clk 0:00:37]}  c4 {[%clk 0:00:25]} 26. Bd6 {[%clk 0:00:24]}  Rb6 {[%clk 0:00:24]} 27. Bc5 {[%clk 0:00:24]}  Rc6 {[%clk 0:00:19]} 28. Bf2 {[%clk 0:00:20]}  cxb3 {[%clk 0:00:20]} 29. cxb3 {[%clk 0:00:21]}  Rb8 {[%clk 0:00:19]} 30. Re3 {[%clk 0:00:20]}  Rcb6 {[%clk 0:00:20]} 31. Rb1 {[%clk 0:00:19]}  Rb4 {[%clk 0:00:19]} 32. Rc1 {[%clk 0:00:17]}  Rxb3 {[%clk 0:00:18]} 33. Rc7+ {[%clk 0:00:17]}  Kg6 {[%clk 0:00:18]} 34. g4 {[%clk 0:00:16]}  Rxe3+ {[%clk 0:00:18]} 35. Bxe3 {[%clk 0:00:17]}  Rb3 {[%clk 0:00:18]} 36. Rc6 {[%clk 0:00:14]}  d4 {[%clk 0:00:17]} 37. Rxe6 {[%clk 0:00:03]}  Rxe3+ {[%clk 0:00:17]} 38. Rxe3 {[%clk 0:00:04]}  dxe3 {[%clk 0:00:18]} 39. Kxe3 {[%clk 0:00:03]}  Kf7 {[%clk 0:00:18]} 40. Ke4 {[%clk 0:00:03]}  Ke6 {[%clk 0:00:18]} 41. h3 {[%clk 0:00:01]}  g6 {[%clk 0:00:17]} 42. Kd3 {[%clk 0:00:01]}  Kd5 {[%clk 0:00:17]} 43. Ke3 {[%clk 0:00:02]}  Be7 {[%clk 0:00:17]} 44. Kd3 {[%clk 0:00:02]}  Bc5 {[%clk 0:00:17]} 45. Kc3 {[%clk 0:00:01]}  Bd6 {[%clk 0:00:16]} 46. f5 {[%clk 0:00:01]}  gxf5 {[%clk 0:00:17]} 47. gxf5 {[%clk 0:00:02]}  Be5+ {[%clk 0:00:18]} 48. Kd3 {[%clk 0:00:03]}  Bf6 {[%clk 0:00:19]} 49. Ke3 {[%clk 0:00:03]}  Kc4 {[%clk 0:00:19]} 0-1


[Site "https://www.chess.com"]